Workbook

Sheet Billing and Collecting
E2: Customers, 2023 Forecast
E3: Res | F3: GS<50 | G3: GS>50 | H3: Strt Lgt | I3: USL
E4: =[1]Meters!N6 -> 16987 | F4: =[1]Meters!O7+[1]Meters!O9 -> 1830 | G4: =[1]Meters!P8 -> 128 | H4: 3 | I4: 30
K6: Total Weighted Customers | M6: Allocated Cost
B7: Expense Description | D7: 2021 Budget | E7: Relative Cost (weight) Per Customer | M7: =E3 -> Res | N7: =F3 -> GS<50 | O7: =G3 -> GS>50 | P7: =H3 -> Strt Lgt | Q7: =I3 -> USL
B8: Canada Post Corp | D8: 100000 | E8: 1 | F8: 1 | G8: 1 | H8: 1 | I8: 1 | K8: =SUMPRODUCT(E8:I8,E$4:I$4) -> 18978 | M8: =IFERROR($D8*E8/$K8,0) -> 5.269259142 | N8: =IFERROR($D8*F8/$K8,0) -> 5.269259142 | O8: 5.269259142 | P8: 5.269259142 | Q8: =IFERROR($D8*I8/$K8,0) -> 5.269259142
B9: Utility Collaborative Services | D9: 130000 | E9: 1 | F9: 1 | G9: 1 | H9: 1 | I9: 1 | K9: =SUMPRODUCT(E9:I9,E$4:I$4) -> 18978 | M9: =IFERROR($D9*E9/$K9,0) -> 6.850036885 | N9: 6.850036885 | O9: 6.850036885 | P9: 6.850036885 | Q9: 6.850036885
B10: Util-Assist Inc | D10: 55000 | E10: 1 | F10: 1 | G10: 1 | K10: 18945 | M10: 2.90314067 | N10: 2.90314067 | O10: 2.90314067 | P10: 0 | Q10: 0
B11: Utilismart | D11: 77000 | E11: 1 | F11: 1.5 | G11: 3 | H11: 1 | K11: 20119 | M11: 3.827227993 | N11: 5.74084199 | O11: 11.48168398 | P11: 3.827227993 | Q11: 0
B12: Docu-Link | D12: 120000 | E12: 1 | F12: 1 | G12: 1 | H12: 1 | I12: 1 | K12: 18978 | M12: 6.323110971 | N12: 6.323110971 | O12: 6.323110971 | P12: 6.323110971 | Q12: 6.323110971
B13: Other | D13: 27000 | E13: 1 | F13: 1 | G13: 1 | H13: 1 | I13: 1 | K13: 18978 | M13: 1.422699968 | N13: 1.422699968 | O13: 1.422699968 | P13: 1.422699968 | Q13: 1.422699968
B14: Supervision | D14: 134000 | E14: 1 | F14: 1 | G14: 2 | H14: 1 | I14: 1 | K14: 19106 | M14: 7.013503611 | N14: 7.013503611 | O14: 14.02700722 | P14: 7.013503611 | Q14: 7.013503611
B15: Billing Department | D15: 84000 | E15: 1 | F15: 1 | G15: 1 | H15: 1 | I15: 1 | K15: 18978 | M15: 4.426177679 | N15: 4.426177679 | O15: 4.426177679 | P15: 4.426177679 | Q15: 4.426177679
B16: Collections Department | D16: 95000 | E16: 1 | F16: 1 | G16: 1 | K16: 18945 | M16: 5.014515703 | N16: 5.014515703 | O16: 5.014515703 | P16: 0 | Q16: 0
B17: Customer Service Department | D17: 146000 | E17: 1 | F17: 1 | G17: 2 | H17: 1 | I17: 1 | K17: 19106 | M17: 7.641578562 | N17: 7.641578562 | O17: 15.28315712 | P17: 7.641578562 | Q17: 7.641578562
K18: Identified Cost per Customer
B19: Totals | D19: =SUM(D8:D18) -> 968000 | M19: =SUM(M8:M17) -> 50.69125119 | N19: =SUM(N8:N17) -> 52.60486518 | O19: =SUM(O8:O17) -> 73.00078935 | P19: =SUM(P8:P17) -> 42.77359481 | Q19: =SUM(Q8:Q17) -> 38.94636682
B21: WEIGHTING FACTORS for Cost Allocation Model | M21: =M19/$M19 -> 1 | N21: =N19/$M19 -> 1.03775038 | O21: 1.440106283 | P21: 0.8438062548 | Q21: 0.7683054947 | R21: <Output to CAM
B24: Assumptions:
B25: UtiliSmart | C25: GS<50 and GS>50 have higher weights due to the increased data collection and interval data stored.
C26: It is higher for GS>50kW because not all GS<50kW have interval data but we do track certain meters for reclassification
B27: Supervision/Customer service | C27: Higher for GS>50kW customers due to increased involvement and engagement (i.e. ICI, ad hoc requests for load data and other expansion projects)
